bitfinex-derivatives/quotes_ETHF0:USTF0_20250420
["timestamp","ask_amount","ask_price","bid_price","bid_amount"]
[1745129055272,19.10426867,1611.9,1611.8,3.68594]
[1745129055470,14.30036867,1611.9,1611.8,3.68594]
[1745129056778,8.136,1611.9,1611.8,3.68594]
[1745129057074,3.46887,1611.9,1611.7,4.44877]
[1745129057275,2.5143,1611.8,1611.7,8.15182]
[1745129058277,4.7423,1611.8,1611.7,8.15182]
[1745129060268,2.5143,1611.8,1611.7,8.15182]
[1745129061377,2.5143,1611.8,1611.7,2.94402]
[1745129065682,7.02876867,1612.0,1611.9,1.24087]
[1745129065882,9.54526867,1612.0,1611.9,1.24087]
[1745129066184,11.77326867,1612.0,1611.9,1.24087]
[1745129067485,13.01405867,1612.0,1611.9,1.24087]
[1745129067676,11.77326867,1612.0,1611.9,1.24087]
[1745129069582,11.77326867,1612.0,1611.9,2.12027]
[1745129070489,8.39236867,1612.0,1611.9,2.12027]
[1745129070788,8.39236867,1612.0,1611.9,2.92527]
[1745129071798,2.228,1612.0,1611.9,2.92527]
[1745129074897,3.46879,1612.0,1611.9,2.92527]
[1745129075088,3.9461,1612.0,1611.9,2.12027]
[1745129077393,4.8189,1612.0,1611.9,2.12027]
[1745129077997,2.228,1612.0,1611.9,2.12027]
[1745129078902,2.228,1612.0,1611.9,4.12027]
[1745129079706,2.228,1612.0,1611.9,7.32807]
[1745129080500,3.46879,1612.0,1611.9,7.32807]
[1745129080706,5.91359,1612.0,1611.9,4.44867]
[1745129081404,4.6728,1612.0,1611.9,4.44867]
[1745129082506,5.91359,1612.0,1611.9,4.44867]
[1745129083301,4.6728,1612.0,1611.9,4.44867]
[1745129083712,3.0479,1612.0,1611.9,7.30757]
[1745129086016,2.228,1612.0,1611.9,7.30757]
[1745129089407,3.46879,1612.0,1611.9,5.2078]
[1745129089613,1.24091,1611.9,1611.6,7.1628]
[1745129089807,4.60411,1611.9,1611.8,1.24094]
[1745129090211,6.83211,1611.9,1611.8,1.24094]
[1745129090915,5.5912,1611.9,1611.8,1.24094]
[1745129095312,5.5912,1611.9,1611.7,1.5879]
[1745129095515,1.6838,1611.8,1611.7,4.82892]
[1745129096106,3.9118,1611.8,1611.7,4.82892]
[1745129097115,3.9118,1611.8,1611.7,3.24102]
[1745129097518,5.15274,1611.8,1611.6,2.92508]
[1745129097817,2.5287,1611.7,1611.6,2.92508]
[1745129098212,4.7567,1611.7,1611.6,2.92508]
[1745129101914,8.88369276,1611.7,1611.6,2.92508]
[1745129105623,6.35499276,1611.7,1611.6,2.92508]
[1745129107118,4.65964276,1611.7,1611.6,8.77708]
[1745129107324,1.66566187,1611.7,1611.6,18.98488]
[1745129107522,1.87e-06,1611.7,1611.6,18.98488]
[1745129108222,6.16436867,1611.8,1611.7,3.24102]
[1745129108421,6.16436867,1611.8,1611.7,4.98432]
[1745129111627,1.6216,1612.0,1611.9,1.24087]
[1745129111828,0.7933,1612.1,1612.0,1.24079]
[1745129112031,6.16436867,1612.2,1612.1,1.24071]
[1745129112230,8.39236867,1612.2,1612.1,2.05641]
[1745129112425,10.00426867,1612.2,1612.1,3.65431]
[1745129116637,3.8399,1612.2,1612.1,3.65431]
[1745129117523,2.228,1612.2,1612.1,3.65431]
[1745129117728,2.228,1612.2,1612.1,6.44921]
[1745129119935,3.8285,1612.2,1612.1,6.44921]
[1745129121741,2.228,1612.2,1612.1,6.44921]
[1745129132049,2.228,1612.2,1612.1,9.65701]
[1745129133349,3.8879,1612.2,1612.1,8.86211]
[1745129134146,8.8879,1612.2,1612.1,2.0]
[1745129134342,10.12854,1612.2,1612.0,4.25417]
[1745129134542,2.228,1612.2,1612.0,4.25412]
[1745129134946,3.46865,1612.2,1612.0,4.25412]
[1745129135249,4.44851,1612.1,1612.0,3.0134]
[1745129135541,4.44851,1612.1,1612.0,1.6407]
[1745129136146,6.172,1612.2,1612.0,1.6407]
[1745129136349,2.228,1612.1,1612.0,2.88149]
[1745129138241,2.228,1612.1,1612.0,1.24079]
[1745129144654,2.228,1612.1,1612.0,2.99449]
[1745129146851,3.8999,1612.1,1612.0,2.99449]
[1745129147358,2.228,1612.1,1612.0,2.99449]
[1745129147552,2.228,1612.1,1612.0,9.94879]
[1745129151154,2.228,1612.1,1612.0,6.74099]
[1745129151359,2.228,1612.1,1612.0,9.94879]
[1745129151759,2.228,1612.1,1612.0,4.99449]
[1745129152059,2.228,1612.1,1612.0,8.20229]
[1745129152460,3.0489,1612.1,1612.0,8.20229]
[1745129153061,3.0489,1612.1,1612.0,6.44859]
[1745129153256,3.0489,1612.1,1612.0,4.44859]
[1745129153449,4.7287,1612.1,1612.0,4.44859]
[1745129154050,4.7287,1612.1,1612.0,3.2078]
[1745129154246,4.7287,1612.1,1611.9,0.5684]
[1745129154451,3.78229,1612.0,1611.9,0.5684]
[1745129154962,10.7493,1612.0,1611.8,1.3726]
[1745129155162,6.87857,1611.9,1611.8,1.3726]
[1745129156257,9.10657,1611.9,1611.8,1.3726]
[1745129156872,7.8657,1611.9,1611.8,1.3726]
[1745129157161,8.7298,1611.9,1611.8,1.3726]
[1745129158163,8.7298,1611.9,1611.8,2.61354]
[1745129158954,8.7298,1611.9,1611.8,1.24094]
[1745129160257,8.7298,1611.9,1611.8,2.85454]
[1745129160460,4.7858,1611.9,1611.8,2.85454]
[1745129160657,8.7308,1611.9,1611.8,2.85454]
[1745129160862,8.7308,1611.9,1611.8,1.24094]
[1745129161864,9.97167,1611.9,1611.8,1.24094]
[1745129162066,8.7598,1611.9,1611.8,2.89744]
[1745129162262,10.00067,1611.9,1611.8,2.89744]
[1745129163067,8.7598,1611.9,1611.8,2.89744]
[1745129163867,10.00067,1611.9,1611.8,2.89744]
[1745129165070,6.02667,1611.9,1611.8,2.89744]
[1745129165260,10.00067,1611.9,1611.7,2.67516]
[1745129165467,1.7042,1611.8,1611.7,1.80946]
[1745129165961,1.7042,1611.8,1611.7,1.24096]
[1745129166162,3.9322,1611.8,1611.7,2.83166]
[1745129175477,5.17314,1611.8,1611.6,4.6003]
[1745129175773,5.17314,1611.8,1611.6,7.84135]
[1745129176073,3.3502,1611.7,1611.6,7.84135]
[1745129176578,3.3502,1611.7,1611.6,8.97315]
[1745129177077,5.5782,1611.7,1611.6,8.97315]
[1745129178684,5.5782,1611.7,1611.6,5.76535]
[1745129179182,3.029,1611.7,1611.6,5.76535]
[1745129183283,2.228,1611.7,1611.6,5.76535]
[1745129192092,2.228,1611.7,1611.6,7.40635]
[1745129197805,2.228,1611.7,1611.6,7.97485]
[1745129198197,2.228,1611.7,1611.6,11.18265]
[1745129198906,2.228,1611.7,1611.6,12.55545]
[1745129206006,4.7321,1611.7,1611.6,6.82335]
[1745129212617,4.7321,1611.7,1611.6,7.61675]
[1745129213917,4.7321,1611.7,1611.6,10.82455]
[1745129214216,4.7321,1611.7,1611.6,11.66475]
[1745129216908,3.0293,1611.7,1611.6,11.66475]
[1745129219418,2.228,1611.7,1611.6,11.66475]
[1745129221220,8.39236867,1611.8,1611.7,1.24102]
[1745129221421,8.39236867,1611.8,1611.7,4.88712]
[1745129223721,2.228,1611.8,1611.7,4.88712]
[1745129224326,9.56176867,1611.9,1611.8,3.24094]
[1745129224513,9.56176867,1611.9,1611.8,4.84744]
[1745129224821,9.56176867,1611.9,1611.8,5.41594]
[1745129225125,11.78976867,1611.9,1611.8,5.41594]
[1745129234629,5.6254,1611.9,1611.8,5.41594]
[1745129238330,3.0922,1611.9,1611.8,5.41594]
[1745129238630,3.0922,1611.9,1611.8,6.26614]
[1745129238830,2.228,1611.9,1611.8,6.26614]
[1745129239424,2.228,1611.9,1611.8,5.41594]
[1745129239627,2.228,1611.9,1611.8,6.26614]
[1745129241131,2.228,1611.9,1611.8,7.63874]
[1745129249340,2.228,1611.9,1611.8,10.84654]
[1745129250544,2.228,1611.9,1611.8,7.63874]
[1745129250726,2.228,1611.9,1611.8,10.84654]
[1745129251140,2.228,1611.9,1611.8,7.63874]
[1745129251341,2.228,1611.9,1611.8,10.84654]
[1745129253442,2.228,1611.9,1611.8,3.9411]
[1745129253443,6.152,1611.9,1611.8,3.9411]
[1745129253740,14.08217,1611.9,1611.8,1.9411]
[1745129257246,20.24653867,1611.9,1611.8,1.9411]
[1745129259351,26.15453867,1611.9,1611.8,1.9411]
[1745129263152,21.15453867,1611.9,1611.8,1.9411]
[1745129265656,15.98966867,1611.9,1611.8,3.18204]
[1745129265851,18.22536867,1611.9,1611.8,3.18204]
[1745129266057,14.30036867,1611.9,1611.8,8.38984]
[1745129266254,14.30036867,1611.9,1611.8,10.99284]
[1745129267855,8.136,1611.9,1611.8,10.99284]
[1745129268144,5.908,1611.9,1611.8,10.99284]
[1745129268953,5.908,1611.9,1611.8,15.99284]
[1745129271053,16.17202867,1612.2,1612.0,1.24077]
[1745129271259,16.17202867,1612.2,1612.0,3.24077]
[1745129271450,14.93136867,1612.2,1612.1,1.24071]
[1745129271650,14.93136867,1612.2,1612.0,0.8066]
[1745129271851,14.93136867,1612.2,1612.0,4.04734]
[1745129272047,10.995,1612.2,1612.0,4.04734]
[1745129272763,12.23564,1612.2,1612.0,4.04734]
[1745129273356,0.8704,1612.1,1612.0,4.04734]
[1745129273562,2.5188,1612.1,1612.0,4.04734]
[1745129274062,4.7468,1612.1,1612.0,4.04734]
[1745129274473,4.7468,1612.1,1612.0,6.25664]
[1745129279271,4.7468,1612.1,1612.0,7.62904]
[1745129279965,3.0984,1612.1,1612.0,7.62904]
[1745129280161,2.228,1612.1,1612.0,7.62904]
[1745129285374,4.32580867,1612.3,1612.2,1.24064]
[1745129285571,8.21915823,1612.4,1612.2,5.2078]
[1745129285772,6.62507823,1612.4,1612.3,7.16956]
[1745129285972,4.98546823,1612.4,1612.3,8.00356]
[1745129286184,3.36379823,1612.4,1612.3,13.00356]
[1745129286484,8.90529155,1612.5,1612.4,1.24048]
[1745129286685,8.90529155,1612.5,1612.4,6.44828]
[1745129286876,8.90529155,1612.5,1612.4,11.44828]
[1745129288382,4.53846155,1612.5,1612.4,13.67628]
[1745129288576,3.15094155,1612.5,1612.4,13.67628]
[1745129288779,1.82947155,1612.5,1612.4,15.33938]
[1745129289473,1.6964,1613.0,1612.8,1.24017]
[1745129289668,1.6966,1612.9,1612.8,3.24017]
[1745129289881,1.6966,1612.9,1612.8,4.98827]
[1745129290074,3.9246,1612.9,1612.8,2.0]
[1745129290583,3.9246,1612.9,1612.8,3.24017]
[1745129294186,4.7932,1612.9,1612.8,3.80837]
[1745129296691,4.7932,1612.9,1612.8,5.18017]
[1745129302692,6.0333,1612.9,1612.8,3.94]
[1745129303603,6.0333,1612.9,1612.8,5.18017]
[1745129304296,6.0333,1612.9,1612.8,3.94]
[1745129304803,11.0333,1612.9,1612.8,3.94]
[1745129305002,11.0333,1612.9,1612.8,1.94]
[1745129305888,1.24031,1612.7,1612.5,4.44816]
[1745129306090,0.8246,1612.6,1612.5,6.44816]
[1745129306290,2.4642,1612.6,1612.5,6.44816]
[1745129307111,4.6922,1612.6,1612.5,6.44816]
[1745129316000,4.6922,1612.6,1612.5,3.24036]
[1745129316513,4.6922,1612.6,1612.5,4.87986]
[1745129317110,2.228,1612.6,1612.5,4.87986]
[1745129317309,2.228,1612.6,1612.5,5.71986]
[1745129318114,8.5586,1612.8,1612.6,1.24028]
[1745129318314,8.5586,1612.8,1612.6,5.82508]
[1745129318625,8.5586,1612.8,1612.7,1.24025]
[1745129318913,8.5586,1612.8,1612.6,3.82507]
[1745129319114,10.7866,1612.8,1612.6,5.82507]
[1745129320814,10.7866,1612.8,1612.7,1.24025]
[1745129321013,9.5464,1612.8,1612.7,2.94375]
[1745129322416,5.6194,1612.8,1612.7,2.94375]
[1745129322615,9.5684,1612.8,1612.7,2.94375]
[1745129322803,7.8844,1612.8,1612.7,2.94375]
[1745129323009,2.228,1612.8,1612.7,4.94375]
[1745129324117,3.46817,1612.8,1612.7,2.0]
[1745129324311,6.69587,1612.8,1612.7,2.0]
[1745129329126,5.4557,1612.8,1612.7,3.24025]
[1745129333124,5.4557,1612.8,1612.7,4.88125]
[1745129333925,6.69587,1612.8,1612.7,4.88125]
[1745129335420,5.4557,1612.8,1612.7,4.88125]
[1745129335825,6.69587,1612.8,1612.7,4.88125]
[1745129336325,5.4557,1612.8,1612.7,4.88125]
[1745129336725,5.4557,1612.8,1612.7,6.53995]
[1745129341623,3.8365,1612.8,1612.7,6.53995]
[1745129342718,3.8365,1612.8,1612.7,3.641]
[1745129342719,5.07667,1612.8,1612.7,3.641]
[1745129343017,5.92727,1612.8,1612.7,3.641]
[1745129344729,5.92727,1612.8,1612.7,4.88125]
[1745129347930,5.92727,1612.8,1612.7,3.641]
[1745129348533,5.92727,1612.8,1612.7,4.88125]
[1745129351331,4.6871,1612.8,1612.7,4.88125]
[1745129353228,4.6871,1612.8,1612.7,6.54445]
[1745129366546,3.8365,1612.8,1612.7,6.54445]
[1745129374254,5.07667,1612.8,1612.7,3.641]
[1745129374452,5.07667,1612.8,1612.7,1.641]
[1745129376153,5.07667,1612.8,1612.7,2.88125]
[1745129376955,5.07667,1612.8,1612.7,1.641]
[1745129394783,8.99867,1612.8,1612.7,1.641]
[1745129404997,12.20647,1612.8,1612.7,1.641]
[1745129407492,8.99867,1612.8,1612.7,1.641]
[1745129408402,8.99867,1612.8,1612.7,2.88125]
[1745129408598,8.99867,1612.8,1612.7,4.51915]
[1745129408799,8.99867,1612.8,1612.7,3.2789]
[1745129409191,8.99867,1612.8,1612.7,4.51915]
[1745129411998,8.99867,1612.8,1612.7,3.2789]
[1745129413006,8.99867,1612.8,1612.7,4.51915]
[1745129414605,7.7585,1612.8,1612.7,4.51915]
[1745129414796,6.15,1612.8,1612.7,4.51915]
[1745129432918,7.8868,1612.8,1612.7,4.51915]
[1745129435325,9.12697,1612.8,1612.7,4.51915]
[1745129435523,7.8868,1612.8,1612.7,4.51915]
[1745129437027,9.12697,1612.8,1612.7,4.51915]
[1745129438230,7.8868,1612.8,1612.7,4.51915]
[1745129438728,9.12697,1612.8,1612.7,4.51915]
[1745129439125,7.8868,1612.8,1612.7,4.51915]
[1745129442030,9.12697,1612.8,1612.7,4.51915]
[1745129445123,7.8868,1612.8,1612.7,4.51915]
[1745129446538,3.9648,1612.8,1612.7,4.51915]
[1745129450834,2.228,1612.8,1612.7,4.51915]
[1745129451146,8.217993,1613.0,1612.9,1.2401]
[1745129451438,8.217993,1613.0,1612.9,6.4479]
[1745129451828,8.217993,1613.0,1612.9,8.0659]
[1745129452627,8.217993,1613.0,1612.9,13.0659]
[1745129455444,8.217993,1613.0,1612.9,8.0659]
[1745129457740,8.217993,1613.0,1612.9,4.8581]
[1745129457940,8.217993,1613.0,1612.9,8.0659]
[1745129458134,10.445993,1613.0,1612.9,8.0659]
[1745129458336,12.168293,1613.0,1612.9,8.0659]
[1745129458844,13.021693,1613.0,1612.9,8.0659]
[1745129460344,13.021693,1613.0,1612.9,6.4479]
[1745129460835,4.8037,1613.0,1612.9,6.4479]
[1745129461945,4.8037,1613.0,1612.9,8.1321]
[1745129467154,4.8037,1613.0,1612.9,4.9243]
[1745129467352,4.8037,1613.0,1612.9,8.1321]
[1745129468250,4.8037,1613.0,1612.9,6.4479]
[1745129469252,4.8037,1613.0,1612.9,8.2067]
[1745129470049,3.9503,1613.0,1612.9,8.2067]
[1745129470253,1.7223,1613.0,1612.9,8.2067]
[1745129474258,3.9503,1613.0,1612.9,8.2067]
[1745129475158,1.7223,1613.0,1612.9,8.2067]
[1745129476159,3.9503,1613.0,1612.9,8.2067]
[1745129478059,6.1783,1613.0,1612.9,8.2067]
[1745129478359,3.9503,1613.0,1612.9,8.2067]
[1745129479062,1.7223,1613.0,1612.9,8.2067]
[1745129482059,3.9503,1613.0,1612.9,8.2067]
[1745129482973,3.9503,1613.0,1612.9,4.9989]
[1745129483264,1.7223,1613.0,1612.9,8.2067]
[1745129485066,1.7223,1613.0,1612.9,9.8513]
[1745129486560,1.7223,1613.0,1612.9,8.0925]
[1745129487176,3.9503,1613.0,1612.9,8.0925]
[1745129493874,3.9503,1613.0,1612.9,4.8847]
[1745129494077,3.9503,1613.0,1612.9,8.0925]
[1745129497276,3.9503,1613.0,1612.9,3.6446]
[1745129497477,9.10032,1613.0,1612.9,1.6446]
[1745129497776,14.10032,1613.0,1612.9,1.6446]
[1745129499681,17.30812,1613.0,1612.9,1.6446]
[1745129499880,23.21612,1613.0,1612.9,1.6446]
[1745129502577,18.21612,1613.0,1612.9,1.6446]
[1745129503790,26.434113,1613.0,1612.9,1.6446]
[1745129504191,1.24033,1612.6,1612.5,3.2078]
[1745129504894,4.58553,1612.6,1612.5,4.4482]
[1745129505192,6.81353,1612.6,1612.5,4.4482]
[1745129505790,6.81353,1612.6,1612.5,1.2404]
[1745129506105,6.81353,1612.6,1612.5,4.4482]
[1745129507894,6.81353,1612.6,1612.4,3.74153]
[1745129508092,6.81353,1612.6,1612.5,3.2078]
[1745129510803,6.81353,1612.6,1612.4,3.74153]
[1745129511102,6.81353,1612.6,1612.5,3.2078]
[1745129511303,6.81353,1612.6,1612.5,5.7997]
[1745129511803,6.81353,1612.6,1612.5,2.5919]
[1745129511993,6.81353,1612.6,1612.5,5.7997]
[1745129516599,6.81353,1612.6,1612.5,2.5919]
[1745129516908,6.81353,1612.6,1612.5,7.0401]
[1745129518506,6.81353,1612.6,1612.5,5.7997]
[1745129518900,6.81353,1612.6,1612.5,2.5919]
[1745129519201,6.81353,1612.6,1612.5,5.7997]
[1745129519508,6.81353,1612.6,1612.5,7.0401]
[1745129520010,6.81353,1612.6,1612.5,3.8323]
[1745129520314,6.81353,1612.6,1612.5,5.7997]
[1745129520512,6.81353,1612.6,1612.5,2.5919]
[1745129521013,6.81353,1612.6,1612.5,3.8323]
[1745129521313,5.5732,1612.6,1612.5,3.8323]
[1745129524216,2.228,1612.6,1612.5,3.8323]
[1745129524415,2.228,1612.6,1612.5,5.8323]
[1745129525213,3.91,1612.7,1612.6,1.24033]
[1745129525514,3.91,1612.7,1612.6,4.87863]
[1745129526314,6.138,1612.7,1612.6,4.87863]
[1745129528417,2.228,1612.7,1612.6,4.87863]
[1745129529115,3.2078,1612.8,1612.7,1.24025]
[1745129529316,3.2078,1612.8,1612.7,4.63955]
[1745129529516,4.44797,1612.8,1612.7,3.3993]
[1745129529718,3.2078,1612.8,1612.7,4.63955]
[1745129530116,5.4358,1612.8,1612.7,4.63955]
[1745129533818,2.228,1612.8,1612.7,4.63955]
[1745129534017,2.228,1612.8,1612.7,6.63955]
[1745129534218,5.908,1613.0,1612.9,1.2401]
[1745129534416,15.873683,1613.1,1612.9,3.2401]
[1745129535015,15.873683,1613.1,1612.9,5.7499]
[1745129535221,18.101683,1613.1,1612.9,5.7499]
[1745129535525,16.036293,1613.1,1613.0,4.44782]
[1745129535712,16.036293,1613.1,1613.0,8.96812]
[1745129539430,10.445993,1613.1,1613.0,8.96812]
[1745129540219,2.228,1613.1,1613.0,8.96812]
[1745129543027,0.5834,1613.1,1613.0,8.96812]
[1745129543231,1.6747,1613.3,1613.2,1.23987]
[1745129544020,1.6747,1613.3,1613.2,2.84967]
[1745129544215,3.9027,1613.3,1613.2,6.05747]
[1745129544429,2.228,1613.3,1613.2,8.05747]
[1745129545225,3.3811,1613.5,1613.4,1.23971]
[1745129545523,2.5294,1613.5,1613.4,6.44751]
[1745129545728,1.6747,1613.5,1613.4,6.44751]
[1745129545932,1.6747,1613.5,1613.4,8.04901]
[1745129546125,3.9027,1613.5,1613.4,8.04901]
[1745129546522,2.228,1613.5,1613.4,8.04901]
[1745129547131,8.217993,1613.6,1613.5,1.23964]
[1745129547332,8.217993,1613.6,1613.5,4.84114]
[1745129548635,1.7565,1613.8,1613.7,1.23948]
[1745129548830,2.99591,1613.8,1613.6,6.44734]
[1745129549134,5.22391,1613.8,1613.6,2.0]
[1745129549335,1.6905,1613.7,1613.6,2.0]
[1745129549833,1.6905,1613.7,1613.6,3.23956]
[1745129550135,3.9185,1613.7,1613.6,3.23956]
[1745129550738,3.9185,1613.7,1613.6,2.0]
[1745129552239,3.9185,1613.7,1613.6,3.23956]
[1745129554232,4.7673,1613.7,1613.6,3.23956]
[1745129559640,4.7673,1613.7,1613.6,2.0]
[1745129559841,6.00678,1613.7,1613.6,2.0]
[1745129561142,4.7673,1613.7,1613.6,3.23956]
[1745129563548,6.00678,1613.7,1613.6,2.0]
[1745129565543,6.00678,1613.7,1613.5,2.0]
[1745129565850,3.69691,1613.6,1613.4,4.4475]
[1745129566047,2.83124,1613.5,1613.4,5.2078]
[1745129566245,9.58754,1613.5,1613.4,2.0]
[1745129566445,1.23971,1613.4,1613.2,1.2398]
[1745129566745,2.10549,1613.3,1613.2,2.0]
[1745129567145,4.33349,1613.3,1613.2,2.0]
[1745129567350,3.0937,1613.3,1613.2,3.23987]
[1745129567751,4.8434,1613.3,1613.2,3.23987]
[1745129573958,5.6422,1613.3,1613.2,3.23987]
[1745129574948,5.6422,1613.3,1613.2,5.76927]
[1745129583277,6.88199,1613.3,1613.2,5.76927]
[1745129584668,6.88199,1613.3,1613.2,4.10887]
[1745129585780,6.88199,1613.3,1613.2,2.0]
[1745129585973,6.88199,1613.3,1613.2,3.23987]
[1745129586677,6.88199,1613.3,1613.2,2.0]
[1745129586979,6.88199,1613.3,1613.2,3.23987]
[1745129587877,6.88199,1613.3,1613.2,2.0]
[1745129588180,6.88199,1613.3,1613.2,3.23987]
[1745129589171,5.6422,1613.3,1613.2,5.70237]
[1745129589579,6.88199,1613.3,1613.2,5.70237]
[1745129589882,6.88199,1613.3,1613.2,4.4625]
[1745129590182,6.88199,1613.3,1613.2,2.4625]
[1745129590479,6.88199,1613.3,1613.2,3.70237]
[1745129590687,3.46779,1613.3,1613.2,2.4625]
[1745129590878,2.228,1613.3,1613.2,4.54667]
[1745129591080,5.4835,1613.3,1613.2,4.54667]
[1745129591279,6.72329,1613.3,1613.2,4.54667]
[1745129592086,5.4835,1613.3,1613.2,4.54667]
[1745129596993,6.72329,1613.3,1613.2,4.54667]
[1745129597291,6.72329,1613.3,1613.2,3.70237]
[1745129597490,6.72329,1613.3,1613.1,1.23989]
[1745129597787,2.83867,1613.2,1613.1,2.0]
[1745129598089,1.5988,1613.2,1612.8,6.7306]
[1745129598291,1.24004,1613.0,1612.8,8.13054]
[1745129598491,1.5988,1612.9,1612.8,6.65014]
[1745129599091,3.8268,1612.9,1612.8,6.65014]
[1745129599990,4.6835,1612.9,1612.8,6.65014]
[1745129600591,5.9236,1612.9,1612.8,2.0]
[1745129600896,9.13146,1612.9,1612.6,6.99251]
[1745129601088,1.7517,1612.8,1612.6,9.79821]
[1745129601587,2.99187,1612.8,1612.6,9.79821]
[1745129602096,5.21987,1612.8,1612.6,9.79821]
[1745129602297,1.7517,1612.7,1612.6,9.79821]
[1745129602685,2.99195,1612.7,1612.6,7.7503]
[1745129602893,3.85045,1612.7,1612.6,7.7503]
[1745129603094,6.90095,1612.7,1612.6,7.7503]
[1745129603391,6.90095,1612.7,1612.6,5.2078]
[1745129603585,1.24035,1612.6,1612.4,7.78232]
[1745129603791,2.84745,1612.6,1612.5,2.0]
[1745129604193,5.07545,1612.6,1612.5,2.0]
[1745129607097,3.8351,1612.6,1612.5,3.2404]
[1745129607400,5.07543,1612.6,1612.5,2.0]
[1745129608001,3.8351,1612.6,1612.5,2.0]
[1745129608802,5.07543,1612.6,1612.5,2.0]
[1745129610703,1.2404,1612.5,1612.4,0.801]
[1745129611001,3.7356,1612.5,1612.4,0.801]
[1745129611203,5.9636,1612.5,1612.4,0.801]
[1745129612199,4.7232,1612.5,1612.4,2.04148]
[1745129612603,4.7232,1612.5,1612.4,0.801]
[1745129612801,5.9636,1612.5,1612.3,2.966]
[1745129612998,1.7166,1612.4,1612.3,5.8437]
[1745129613202,3.9446,1612.4,1612.3,5.8437]
[1745129613998,3.9446,1612.4,1612.3,4.6032]
[1745129614405,4.7911,1612.4,1612.3,4.6032]
[1745129615510,4.7911,1612.4,1612.3,5.84376]
[1745129618401,3.9446,1612.4,1612.3,5.84376]
[1745129621306,2.228,1612.4,1612.3,5.84376]
[1745129623121,4.52396,1612.6,1612.4,1.24044]
[1745129623411,4.52396,1612.6,1612.4,2.95684]
[1745129624112,6.75196,1612.6,1612.4,2.95684]
[1745129624412,1.6719,1612.5,1612.4,2.95684]
[1745129625312,3.8999,1612.5,1612.4,2.95684]
[1745129633621,2.228,1612.5,1612.4,4.95684]
[1745129636027,5.1896,1612.5,1612.4,2.0]
[1745129640324,5.1896,1612.5,1612.4,3.24048]
[1745129641121,5.1896,1612.5,1612.4,2.0]
[1745129641327,5.1896,1612.5,1612.3,3.87521]
[1745129641525,2.5209,1612.4,1612.3,5.87521]
[1745129642227,4.7489,1612.4,1612.3,5.87521]
[1745129644427,2.228,1612.4,1612.3,5.87521]
[1745129645120,7.1734,1612.6,1612.5,1.2404]
[1745129645322,3.2574,1612.6,1612.5,1.2404]
[1745129645521,1.2404,1612.5,1612.4,3.5855]
[1745129645722,1.2404,1612.5,1612.4,2.0]
[1745129645927,2.8552,1612.5,1612.4,2.0]
[1745129646234,5.0832,1612.5,1612.4,2.0]
[1745129646934,1.24048,1612.4,1612.3,2.11826]
[1745129647128,2.5023,1612.4,1612.3,4.11826]
[1745129648132,4.7303,1612.4,1612.3,4.11826]
[1745129648433,4.7303,1612.4,1612.3,5.86906]
[1745129649226,3.9022,1612.4,1612.3,5.86906]
[1745129655937,4.7275,1612.4,1612.3,5.86906]
[1745129659029,4.7275,1612.4,1612.3,3.24056]
[1745129659232,5.96798,1612.4,1612.3,2.0]
[1745129660239,4.7275,1612.4,1612.3,3.24056]
[1745129663930,4.7275,1612.4,1612.3,2.0]
[1745129663931,5.96798,1612.4,1612.3,2.0]
[1745129665041,5.96798,1612.4,1612.3,3.24056]
[1745129666743,4.7275,1612.4,1612.3,3.24056]
[1745129668735,5.96798,1612.4,1612.3,3.24056]
[1745129669136,5.96798,1612.4,1612.3,2.0]
[1745129670645,1.24056,1612.3,1612.2,1.694]
[1745129670839,3.77246,1612.3,1612.2,3.694]
[1745129671234,6.00046,1612.3,1612.2,1.694]
[1745129671436,6.00046,1612.3,1612.2,2.93464]
[1745129671934,6.00046,1612.3,1612.2,1.694]
[1745129672846,6.00046,1612.3,1612.2,2.93464]
[1745129674947,1.24064,1612.2,1612.1,0.8059]
[1745129675242,1.24071,1612.1,1612.0,13.55954822]
[1745129675448,1.24071,1612.1,1612.0,10.35174822]
[1745129675748,2.89071,1612.1,1612.0,2.06613]
[1745129676236,5.11871,1612.1,1612.0,2.06613]
[1745129679249,5.11871,1612.1,1612.0,0.06613]
[1745129683252,11.02671,1612.1,1612.0,0.06613]
[1745129685559,14.23451,1612.1,1612.0,0.06613]
[1745129688453,14.23451,1612.1,1612.0,1.75773]
[1745129689250,14.23451,1612.1,1612.0,0.06613]
[1745129691776,11.02671,1612.1,1612.0,0.06613]
[1745129693374,9.786,1612.1,1611.7,6.97998]
[1745129693569,1.24093,1611.9,1611.8,4.92084]
[1745129694163,3.46893,1611.9,1611.8,4.92084]
[1745129695366,2.228,1611.9,1611.8,4.92084]
[1745129695977,3.46887,1611.9,1611.8,2.0]
[1745129696163,5.09017,1611.9,1611.8,2.0]
[1745129696368,1.24094,1611.8,1611.6,4.64114]
[1745129696671,3.68134,1611.8,1611.6,6.64114]
[1745129696869,1.24102,1611.7,1611.6,5.4001]
[1745129697173,3.8493,1611.7,1611.6,6.6412]
[1745129697368,10.99832,1611.7,1611.6,0.71026]
[1745129697568,1.24125,1611.4,1611.3,0.06405]
[1745129697877,5.15325,1611.4,1611.3,0.06405]
[1745129698072,7.38125,1611.4,1611.3,0.06405]